fUSD/lending_fUSD_20251108
["ID","MTS","AMOUNT","RATE_DAILY","PERIOD"]
[393394783,1762581042707,-368.14700699,0.000173,2]
[393394784,1762581042861,-11716.4336,0.000173,2]
[393394792,1762581045982,-553.81455117,0.000172,2]
[393394793,1762581045992,-2018.56994883,0.000173,2]
[393394795,1762581046239,-1127.3,0.000173,2]
[393394796,1762581167918,500.0,0.00039057,120]
[393394821,1762581697035,2000.0,0.000301,120]
[393394822,1762581810687,150.04,8.157e-05,2]
[393394823,1762581810874,150.04,0.00012075,2]
[393394824,1762582005798,-150.0,0.00015936,2]
[393394825,1762582005824,-150.04,0.00015993,2]
[393394826,1762582005849,-57.34787537,0.00016058,2]
[393394827,1762582050658,-174.156914,0.00015977,2]
[393394828,1762582050687,-40.4811463,0.00016058,2]
[393394830,1762582107910,357.34,0.00013699,2]
[393394832,1762582215637,-163.16,0.00015885,2]
[393394833,1762582215662,-195.0,0.00015889,2]
[393394834,1762582215685,-151.01690153,0.00015894,2]
[393394843,1762582231675,-47.53309847,0.00015894,2]
[393394844,1762582231685,-95.49069274,0.00016058,2]
[393394845,1762582231695,-200.0,0.00016077,2]
[393394846,1762582231705,-920.0,0.00016158,2]
[393394847,1762582231715,-1200.0,0.00016158,2]
[393394848,1762582231725,-300.0,0.00016158,2]
[393394850,1762582231735,-300.0,0.00016158,2]
[393394851,1762582231745,-14566.19,0.00016159,2]
[393394852,1762582231756,-1655.26,0.00016225,2]
[393394853,1762582231766,-839.57,0.00016438,2]
[393394854,1762582231775,-5000.0,0.00016686,2]
[393394855,1762582231784,-434.0,0.00016712,2]
[393394856,1762582231794,-1000.0,0.00016716,2]
[393394857,1762582231807,-1000.0,0.00016724,2]
[393394858,1762582231817,-11615.12643212,0.00016724,2]
[393394859,1762582231827,-323.0,0.00016724,2]
[393394860,1762582231837,-31125.25,0.00016725,2]
[393394861,1762582231846,-504.6181,0.00016767,2]
[393394862,1762582231856,-500.0,0.00016773,2]
[393394863,1762582231866,-500.0,0.00016773,2]
[393394864,1762582231879,-198.55,0.00016777,2]
[393394865,1762582231889,-950.14627634,0.00016784,2]
[393394866,1762582231907,-49.85372366,0.00016784,2]
[393394867,1762582231916,-1422.02,0.00016785,2]
[393394868,1762582231926,-500.0,0.00016785,2]
[393394869,1762582231936,-156.8836526,0.00016785,2]
[393394870,1762582231946,-500.0,0.00016785,2]
[393394871,1762582231955,-191.95288838,0.00016785,2]
[393394872,1762582231976,-263.455,0.00016785,2]
[393394873,1762582231988,-44.59211162,0.00016785,2]
[393394874,1762582231998,-500.0,0.00016785,2]
[393394875,1762582232008,-398.44259642,0.00016785,2]
[393394876,1762582232020,-101.55740358,0.00016785,2]
[393394877,1762582232030,-373.34260501,0.00016785,2]
[393394878,1762582232040,-500.0,0.00016785,2]
[393394879,1762582232050,-248.39131827,0.00016785,2]
[393394880,1762582232062,-251.60868173,0.00016785,2]
[393394881,1762582232076,-190.08046735,0.00016785,2]
[393394886,1762582237613,-250.0,0.00016785,2]
[393394887,1762582237832,-59.91953265,0.00016785,2]
[393394888,1762582237843,-500.0,0.00016785,2]
[393394889,1762582237853,-500.0,0.00016785,2]
[393394890,1762582237863,-500.0,0.00016785,2]
[393394891,1762582237873,-257.09230735,0.00016785,2]
[393394906,1762582240078,-1.7e-07,0.00016785,2]
[393394907,1762582240315,-242.90769248,0.00016785,2]
[393394908,1762582240326,-500.0,0.00016785,2]
[393394909,1762582240335,-427.47188282,0.00016785,2]
[393394910,1762582240348,-72.52811718,0.00016785,2]
[393394911,1762582240358,-500.0,0.00016785,2]
[393394912,1762582240368,-51.33150839,0.00016785,2]
[393394913,1762582240380,-448.66849161,0.00016785,2]
[393394914,1762582240390,-500.0,0.00016785,2]
[393394915,1762582240400,-44.36867375,0.00016785,2]
[393394916,1762582240412,-455.63132625,0.00016785,2]
[393394917,1762582240422,-500.0,0.00016785,2]
[393394918,1762582240431,-36.37864897,0.00016785,2]
[393394919,1762582240448,-413.73128024,0.00016785,2]
[393394926,1762582242864,-49.89007079,0.00016785,2]
[393394927,1762582242874,-433.38992924,0.00016785,2]
[393394936,1762582243818,-66.61007076,0.00016785,2]
[393394937,1762582243829,-500.0,0.00016785,2]
[393394938,1762582243839,-127.57386524,0.00016785,2]
[393394942,1762582245878,-372.42613476,0.00016785,2]
[393394943,1762582245890,-283.90208537,0.00016785,2]
[393394944,1762582245901,-500.0,0.00016785,2]
[393394945,1762582245913,-500.0,0.00016785,2]
[393394946,1762582245924,-500.0,0.00016785,2]
[393394947,1762582245934,-500.0,0.00016785,2]
[393394948,1762582245944,-500.0,0.00016785,2]
[393394949,1762582245954,-500.0,0.00016785,2]
[393394950,1762582245963,-300.0,0.00016785,2]
[393394951,1762582245973,-500.0,0.00016785,2]
[393394952,1762582245984,-514.75215459,0.00016785,2]
[393394953,1762582245994,-366.75291639,0.00016785,2]
[393394954,1762582246003,-500.0,0.00016785,2]
[393394955,1762582246013,-485.24784541,0.00016785,2]
[393394956,1762582246024,-500.0,0.00016786,2]
[393394957,1762582246034,-500.0,0.00016786,2]
[393394958,1762582246044,-2059.7441832,0.00016786,2]
[393394959,1762582246055,-498.43309608,0.00016786,2]
[393394960,1762582246065,-532.06905087,0.00016786,2]
[393394961,1762582246075,-500.0,0.00016786,2]
[393394962,1762582246085,-141.3103097,0.00016786,2]
[393394963,1762582246097,-250.03806653,0.00016786,2]
[393394964,1762582246169,-32.31635729,0.00016786,2]
[393394965,1762582246179,-2088.3879272,0.00016786,2]
[393394966,1762582246191,-11999.62061953,0.00016786,2]
[393394967,1762582246203,-10250.0,0.00016786,2]
[393394968,1762582246237,-8846.23062518,0.00016786,2]
[393394973,1762582454433,261.38,0.00030136,120]
[393394974,1762582500631,-166.66,0.00015285,2]
[393394975,1762582500656,-28.37804168,0.00015607,2]
[393394976,1762582503237,-138.28195832,0.00015607,2]
[393394977,1762582503262,-70.04344154,0.00015929,2]
[393394978,1762582622014,-96.61655846,0.00015929,2]
[393394979,1762582622050,-166.66,0.0001625,2]
[393394980,1762582622082,-166.66,0.00016572,2]
[393394981,1762582622114,-300.0,0.00016619,2]
[393394982,1762582623712,-9575.35996661,0.0001662,2]
[393394983,1762582623831,-10000.01,0.0001662,2]
[393394984,1762582623948,-10000.01,0.0001662,2]
[393394985,1762582624057,-10000.01,0.0001662,2]
[393394986,1762582624201,-2243.77276209,0.0001662,2]
[393394987,1762582624238,-500.0,0.00016685,2]
[393394988,1762582624274,-500.0,0.00016685,2]
[393394989,1762582624313,-500.0,0.00016685,2]
[393394990,1762582624348,-284.53392227,0.00016685,2]
[393394991,1762582624384,-500.0,0.00016685,2]
[393394992,1762582624419,-443.39663128,0.00016685,2]
[393394993,1762582624533,-56.60336872,0.00016685,2]
[393394994,1762582624568,-500.0,0.00016685,2]
[393394995,1762582624603,-500.0,0.00016685,2]
[393394996,1762582624895,-500.0,0.00016685,2]
[393394997,1762582624931,-500.0,0.00016685,2]
[393394998,1762582626228,-260.09035706,0.00016686,2]
[393394999,1762582629286,-189.15036488,0.00016686,2]
[393395000,1762582630747,-160.19533334,0.00016686,2]
[393395001,1762582633116,-229.34279301,0.00016686,2]
[393395002,1762582638084,-157.05196529,0.00016686,2]
[393395003,1762582706110,21298.2555865,0.00030136,120]
[393395005,1762582758388,-4524.85,0.00016138,2]
[393395006,1762582758422,-255.31,0.00016574,2]
[393395007,1762582758480,-439.69,0.00016574,2]
[393395008,1762582758510,-448.5897864,0.00016593,2]
[393395009,1762582758541,-695.0,0.00016593,2]
[393395010,1762582758570,-695.0,0.00016615,2]
[393395011,1762582758599,-695.0,0.0001668,2]
[393395012,1762582758628,-300.0,0.00016684,2]
[393395013,1762582758658,-1200.0,0.00016685,2]
[393395014,1762582758692,-300.0,0.00016685,2]
[393395015,1762582759768,370.70664183,0.00016593,2]
[393395016,1762582760480,-275.25921738,0.00016686,2]
[393395017,1762582763585,-323.54773269,0.00016686,2]
[393395018,1762582766155,-310.66408936,0.00016686,2]
[393395019,1762582767960,-219.90553776,0.00016686,2]
[393395020,1762582769992,-282.70520303,0.00016686,2]
[393395021,1762582773544,-280.09446224,0.00016686,2]
[393395022,1762582891187,-235.60901817,0.00015893,3]
[393395023,1762582893153,-181.6857788,0.00015893,3]
[393395024,1762582894551,-200.0,0.00015893,3]
[393395025,1762582894612,-381.70520303,0.00015893,3]
[393395026,1762582894643,-300.0,0.00016592,2]
[393395027,1762582894673,-2212.74632882,0.00016593,2]
[393395028,1762582894702,-303.0,0.00016593,2]
[393395029,1762582894811,-3234.40029447,0.00016593,2]
[393395030,1762582894844,-1168.52989518,0.00016593,2]
[393395031,1762582894873,-2773.63,0.00016676,2]
[393395032,1762582894927,-2115.69020964,0.00016676,2]
[393395033,1762582894968,-657.93979036,0.00016676,2]
[393395034,1762582894997,-163.37,0.00016676,2]
[393395035,1762582895028,-1200.0,0.00016685,2]
[393395036,1762582895078,-300.0,0.00016685,2]
[393395037,1762582895110,-1000.0,0.00016685,2]
[393395038,1762582897403,202.55533811,0.00016588,2]
[393395039,1762582897973,888.95487877,0.0001653,2]
[393395040,1762583031169,-1699.87475,0.0001662,2]
[393395041,1762583031199,-1699.87475,0.0001665,2]
[393395042,1762583031230,-151.0,0.00016676,2]
[393395043,1762583031260,-151.0,0.00016676,2]
[393395044,1762583031294,-261.24384501,0.00016676,2]
[393395045,1762583031324,-151.0,0.00016676,2]
[393395046,1762583031355,-151.0,0.00016676,2]
[393395047,1762583031387,-285.1382431,0.00016676,2]
[393395048,1762583031514,-1200.0,0.00016685,2]
[393395049,1762583040081,324.36831161,0.00016597,2]
[393395050,1762583167601,-2843.4952882,0.00016564,2]
[393395051,1762583167652,-3796.88771889,0.00016564,2]
[393395052,1762583167851,-516.13170471,0.00016564,2]
[393395053,1762583167883,-404.6207864,0.00016592,2]
[393395054,1762583167913,-1991.47169592,0.00016592,2]
[393395055,1762583167942,-268.0,0.00016639,2]
[393395056,1762583167972,-300.0,0.00016684,2]
[393395057,1762583168006,-1200.0,0.00016685,2]
[393395058,1762583168037,-300.0,0.00016685,2]
[393395059,1762583180306,39.56162594,0.00016602,2]
[393395060,1762583180329,238.07373025,0.00016602,2]
[393395062,1762583270922,10000.01,0.00015,2]
[393395063,1762583270947,10000.01,0.00015,2]
[393395064,1762583270973,10000.01,0.00015,2]
[393395065,1762583270998,10000.01,0.00015,2]
[393395066,1762583271043,10000.01,0.00015,2]
[393395067,1762583271074,10000.01,0.00015,2]
[393395068,1762583271099,10000.01,0.00015,2]
[393395069,1762583271125,10000.01,0.00015,2]
[393395070,1762583271151,10000.01,0.00015,2]
[393395071,1762583271180,46.9475557,0.00015,2]
[393395072,1762583315686,10000.01,0.00015,3]
[393395073,1762583315710,10000.01,0.00015,3]
[393395074,1762583315733,9824.21,0.00015,3]
[393395098,1762583431821,-500.0,0.00015915,2]
[393395100,1762583431831,-200.0,0.00016018,2]
[393395102,1762583431841,-641.46268841,0.00016041,2]
[393395103,1762583431853,-618.24422,0.00016041,2]
[393395105,1762583432000,-113.46309159,0.00016041,2]
[393395106,1762583432010,-308.65553014,0.0001612,2]
[393395107,1762583432020,-300.0,0.00016199,2]
[393395108,1762583432030,-300.0,0.00016199,2]
[393395109,1762583432273,-1200.0,0.00016199,2]
[393395112,1762583432301,-1321.88137828,0.000162,5]
[393395115,1762583432317,-17754.29862172,0.000162,5]
[393395117,1762583432328,-283.82227265,0.00016592,2]
[393395119,1762583432340,-3962.63717064,0.00016592,2]
[393395121,1762583432351,-364.15870776,0.00016592,2]
[393395123,1762583432360,-1636.272,0.0001662,2]
[393395124,1762583432371,-1664.18,0.00016676,2]
[393395125,1762583432382,-1664.18,0.00016676,2]
[393395126,1762583432392,-1664.18,0.00016676,2]
[393395127,1762583432403,-163.41,0.00016676,2]
[393395128,1762583432413,-193.31002887,0.00016685,2]
[393395129,1762583432424,-500.0,0.00016685,2]
[393395130,1762583432435,-500.0,0.00016685,2]
[393395131,1762583432445,-500.0,0.00016685,2]
[393395132,1762583432458,-420.06772543,0.00016685,2]
[393395133,1762583432468,-500.0,0.00016685,2]
[393395134,1762583432478,-500.0,0.00016685,2]
[393395135,1762583432488,-500.0,0.00016685,2]
[393395136,1762583432499,-500.0,0.00016685,2]
[393395137,1762583432509,-500.0,0.00016685,2]
[393395138,1762583432520,-500.0,0.00016685,2]
[393395139,1762583432531,-500.0,0.00016685,2]
[393395140,1762583432541,-500.0,0.00016685,2]
[393395141,1762583432551,-500.0,0.00016685,2]
[393395142,1762583432562,-500.0,0.00016685,2]
[393395143,1762583432572,-500.0,0.00016685,2]
[393395144,1762583432583,-500.0,0.00016685,2]
[393395145,1762583432594,-500.0,0.00016685,2]
[393395146,1762583432605,-500.0,0.00016685,2]
[393395147,1762583432616,-500.0,0.00016685,2]
[393395148,1762583432626,-167.18841441,0.00016685,2]
[393395149,1762583432636,-500.0,0.00016685,2]
[393395150,1762583432647,-500.0,0.00016685,2]
[393395151,1762583432657,-500.0,0.00016685,2]
[393395152,1762583432667,-500.0,0.00016685,2]
[393395153,1762583432678,-500.0,0.00016685,2]
[393395154,1762583432688,-500.0,0.00016685,2]
[393395155,1762583432698,-562.37208299,0.00016685,2]
[393395156,1762583432709,-500.0,0.00016685,2]
[393395157,1762583432719,-500.0,0.00016685,2]
[393395158,1762583432729,-500.0,0.00016685,2]
[393395159,1762583432741,-500.0,0.00016685,2]
[393395160,1762583432751,-500.0,0.00016685,2]
[393395161,1762583432762,-500.0,0.00016685,2]
[393395162,1762583432772,-304.35354435,0.00016685,2]
[393395163,1762583432783,-5000.0,0.00016686,2]
[393395164,1762583432793,-102979.54677899,0.00016686,2]
[393395165,1762583432806,-304.35354436,0.00016686,2]
[393395166,1762583432819,-1057.8,0.00016686,2]
[393395167,1762583432840,-769.6250295,0.00016686,2]
[393395168,1762583432852,-446.45750058,0.00016686,2]
[393395172,1762583437884,-2177.62818745,0.00016686,2]
[393395251,1762583439895,-1580.8375,0.00016686,2]
[393395252,1762583439907,-3131.9679137,0.00016686,2]
[393395253,1762583439921,-970.92484284,0.00016686,2]
[393395254,1762583439959,-406.37298643,0.00016686,2]
[393395255,1762583440021,-4081.94295654,0.00016686,2]
[393395264,1762583443304,-3531.89579793,0.00016686,2]
[393395302,1762583445981,-21408.46804593,0.00016686,2]
[393395303,1762583445994,-3911.63768855,0.00016686,2]
[393395304,1762583446057,-1186.10579435,0.00016686,2]
[393395305,1762583446347,-1153.76937474,0.00016686,2]
[393395313,1762583648063,-250.0,0.000159,2]
[393395314,1762583661391,-156.4715779,0.00016585,2]
[393395315,1762583661418,-269.15840573,0.00016597,2]
[393395316,1762583661443,-300.0,0.00016684,2]
[393395317,1762583661469,-300.0,0.00016684,2]
[393395318,1762583661494,-1000.0,0.00016685,2]
[393395319,1762583661518,-500.0,0.00016685,2]
[393395320,1762583661543,-500.0,0.00016685,2]
[393395321,1762583661745,-500.0,0.00016685,2]
[393395322,1762583661776,-500.0,0.00016685,2]
[393395323,1762583661801,-500.0,0.00016685,2]
[393395324,1762583661824,-500.0,0.00016685,2]
[393395325,1762583661854,-500.0,0.00016685,2]
[393395326,1762583661880,-500.0,0.00016685,2]
[393395327,1762583661910,-500.0,0.00016685,2]
[393395328,1762583661935,-301.85644303,0.00016685,2]
[393395329,1762583661966,-500.0,0.00016685,2]
[393395330,1762583661994,-642.52413114,0.00016685,2]
[393395331,1762583662020,-345.18725474,0.00016686,2]
[393395332,1762583662044,-300.0,0.00016686,2]
[393395333,1762583662069,-26134.80218746,0.00016686,2]
[393395334,1762583850673,-151.0,0.00015792,2]
[393395335,1762583852766,-594.73,0.00015792,2]
[393395336,1762583854781,-180.43313349,0.00015792,2]
[393395337,1762583857997,-614.42206076,0.00015792,2]
[393395338,1762583860927,-344.49787618,0.00015792,2]
[393395339,1762583863539,-179.84866091,0.00015792,2]
[393395341,1762583911077,-369.366768,0.00015731,2]
[393395342,1762583912763,-206.8342872,0.00015731,2]
[393395343,1762583914747,-239.517914,0.00015731,2]
[393395352,1762584152518,249.70408317,0.00039067,30]
[393395353,1762584241423,-245.05108143,0.00015629,2]
[393395354,1762584247090,-159.74,0.00015629,2]
[393395355,1762584250774,-173.36051182,0.00015629,2]
[393395356,1762584252898,-271.48907211,0.00015629,2]
[393395358,1762584632021,-150.35933464,0.00015629,2]
[393395359,1762584632030,-160.7701,0.00015631,2]
[393395360,1762584632040,-444.8495,0.00015631,2]
[393395361,1762584632051,-1757.9110308,0.00015731,2]
[393395362,1762584632061,-5.86826866,0.00015792,2]
[393395363,1762584632071,-513.03,0.00016044,2]
[393395365,1762584632081,-166.66,0.00016143,2]
[393395366,1762584632091,-221.8861932,0.00016168,2]
[393395367,1762584632101,-894.01797964,0.00016183,2]
[393395368,1762584632111,-169.0,0.00016357,2]
[393395369,1762584632121,-169.08,0.000164,2]
[393395370,1762584632132,-169.08,0.000164,2]
[393395371,1762584632142,-169.08,0.000164,2]
[393395372,1762584632152,-169.11,0.000164,2]
[393395373,1762584632162,-167.02,0.00016417,2]
[393395374,1762584632172,-1200.0,0.00016433,2]
[393395375,1762584632183,-169.0,0.00016434,2]
[393395376,1762584632192,-823.93,0.00016438,2]
[393395377,1762584632202,-169.0,0.00016446,2]
[393395378,1762584632212,-300.0,0.00016448,2]
[393395379,1762584632225,-300.0,0.00016448,2]
[393395380,1762584632236,-21291.74334014,0.0001645,2]
[393395381,1762584632245,-169.0,0.0001647,2]
[393395382,1762584632255,-338.16,0.000165,2]
[393395383,1762584632265,-169.01,0.000165,2]
[393395384,1762584632275,-13371.11854425,0.000165,2]
[393395385,1762584632284,-5051.53323276,0.000165,2]
[393395386,1762584632295,-348.93895271,0.000165,2]
[393395387,1762584632305,-256.32752221,0.000165,2]
[393395388,1762584632315,-505.0,0.00016521,2]
[393395389,1762584632325,-500.0,0.00016573,2]
[393395390,1762584632335,-665.67,0.00016576,2]
[393395391,1762584632344,-665.67,0.00016576,2]
[393395392,1762584632355,-665.67,0.00016576,2]
[393395393,1762584632365,-500.0,0.00016585,2]
[393395394,1762584632375,-500.0,0.00016585,2]
[393395395,1762584632385,-500.0,0.00016585,2]
[393395396,1762584632395,-500.0,0.00016585,2]
[393395398,1762584632405,-315.66185507,0.00016585,2]
[393395400,1762584632415,-65.28505118,0.00016586,2]
[393395402,1762584632427,-434.71494882,0.00016586,2]
[393395404,1762584632437,-500.0,0.00016586,2]
[393395406,1762584632447,-15.34959359,0.00016586,2]
[393395408,1762584632462,-4984.65040641,0.00016586,2]
[393395410,1762584632472,-15215.47647554,0.00016586,2]
[393395412,1762584632484,-4385.28474669,0.00016586,2]
[393395433,1762584632705,-5953.59707074,0.00016586,2]
[393395435,1762584632717,-811.24885213,0.00016586,2]
[393395441,1762584632774,-466.0,0.00016586,2]
[393395444,1762584632806,-8350.92512957,0.00016586,2]
[393395449,1762584632848,-39364.11014383,0.00016586,2]
[393395656,1762584638028,-1360.25058712,0.00016586,2]
[393395657,1762584638095,-538.75390449,0.00016586,2]
[393395658,1762584638221,-15413.10036213,0.00016586,2]
[393395738,1762584640515,-1.7e-07,0.00016586,2]
[393395741,1762584640534,-10445.0,0.00016586,2]
[393395743,1762584640547,-2204.58339215,0.00016586,2]
[393395745,1762584640560,-2937.39956097,0.00016586,2]
[393395749,1762584640590,-1769.67069202,0.00016586,2]
[393395751,1762584640602,-9157.70745117,0.00016586,2]
[393395754,1762584640614,-750.90650004,0.00016586,2]
[393395893,1762584644655,-16833.57581777,0.00016586,2]
[393395899,1762584644781,-308.33367985,0.00016586,2]
[393395945,1762584646259,-1997.73019128,0.00016586,2]
[393395946,1762584646275,-2718.42175,0.00016586,2]
[393395947,1762584646688,-700.03651592,0.00016586,2]
[393396249,1762584676168,-151.0,0.00015602,2]
[393396250,1762584676191,-3.16999983,0.00015633,2]
[393396251,1762584721189,-147.83000017,0.00015633,2]
[393396252,1762584721211,-151.0,0.0001566,2]
[393396253,1762584721239,-19.0495361,0.00015673,2]
[393396254,1762584765637,-131.9504639,0.00015673,2]
[393396255,1762584765662,-64.10861284,0.00015724,2]
[393396256,1762584767065,151.61,8.068e-05,2]
[393396257,1762584767257,151.61,9.175e-05,2]
[393396258,1762584767459,151.61,0.00010283,2]
[393396259,1762584767653,151.61,0.0001139,2]
[393396260,1762584768054,151.61,0.00012497,2]
[393396261,1762584768474,151.61,0.00013605,2]
[393396262,1762584768675,151.61,0.00014712,2]
[393396263,1762584856270,-151.0,0.00015645,2]
[393396264,1762584856297,-53.67113598,0.00015819,2]
[393396265,1762584975651,-369.23685824,0.00015683,2]
[393396266,1762584977137,-257.02561517,0.00015683,2]
[393396267,1762584980786,-201.36752659,0.00015683,2]
[393396268,1762584980811,-97.93886402,0.00015819,2]
[393396269,1762584980834,-9.57690651,0.00015828,2]
[393396271,1762585095771,-140.42309349,0.00015828,2]
[393396272,1762585095796,-51.84744288,0.00015985,2]
[393396273,1762585101013,-143.15255712,0.00015985,2]
[393396274,1762585101036,-43.26549811,0.00015985,2]
[393396275,1762585141195,-111.8810397,0.00015985,2]
[393396276,1762585141221,-68.0669603,0.00016142,2]
[393396277,1762585143790,-199.22908831,0.00016142,2]
[393396278,1762585147141,-228.85098376,0.00016142,2]
[393396279,1762585148636,-193.40637324,0.00016142,2]
[393396280,1762585150632,-152.57216897,0.00016142,2]
[393396281,1762585153457,-159.9363539,0.00016142,2]
[393396282,1762585155648,-179.96004378,0.00016142,2]
[393396283,1762585177859,-273.66125096,0.00015589,2]
[393396284,1762585181463,-344.33175328,0.00015589,2]
[393396285,1762585185212,-223.66125096,0.00015589,2]
[393396286,1762585187791,-580.74202098,0.00015589,2]
[393396287,1762585189922,-217.72040068,0.00015588,2]
[393396288,1762585192456,-13.19959932,0.00015588,2]
[393396289,1762585192481,-153.11559365,0.00015589,2]
[393396290,1762585195579,-178.8903808,0.00015589,2]
[393396291,1762585197605,-182.92101406,0.00015589,2]
[393396292,1762585200004,-171.76167588,0.00015589,2]
[393396293,1762585216140,-319.52375011,0.00015589,2]
[393396294,1762585218812,-192.31896509,0.00015589,2]
[393396295,1762585223532,-151.0,0.00015589,2]
[393396296,1762585225545,-195.0,0.00015589,2]
[393396297,1762585226935,-89.86234423,0.00015589,2]
[393396298,1762585246014,151.0,0.00015904,2]
[393396299,1762585289793,339.47,0.00013699,2]
[393396301,1762585364865,166.66,0.00014781,2]
[393396302,1762585365081,166.66,0.00015092,2]
[393396303,1762585365595,166.66,0.00015403,2]
[393396304,1762585365798,166.66,0.00015715,2]
[393396305,1762585395092,2000.0,0.00015588,2]
[393396306,1762585395572,2000.0,0.00015589,2]
[393396307,1762585396068,2000.0,0.00015589,2]
[393396308,1762585396449,2000.0,0.00015589,2]
[393396309,1762585406220,985.223403,0.00039069,120]
[393396310,1762585406851,200.0,0.00015589,2]
[393396311,1762585439738,285.20138498,0.0003907,120]
[393396312,1762585546190,845.17660771,0.00015934,2]
[393396314,1762585707973,3323.31,0.00015486,2]
[393396315,1762585798928,200.0,0.00015482,2]
[393396323,1762585832284,-166.66,0.00016026,2]
[393396324,1762585832294,-195.0,0.00016034,2]
[393396325,1762585832304,-194.97802774,0.00016142,2]
[393396326,1762585832314,-231.72050617,0.00016142,2]
[393396328,1762585832324,-151.0,0.00016142,2]
[393396329,1762585832333,-168.0,0.00016191,2]
[393396330,1762585832343,-221.8861932,0.00016248,2]
[393396331,1762585832353,-894.01797964,0.00016327,2]
[393396332,1762585832362,-166.66,0.00016337,2]
[393396333,1762585832372,-361.8114,0.00016338,2]
[393396334,1762585832382,-1377.0,0.00016369,2]
[393396335,1762585832393,-314.04505743,0.00016376,2]
[393396336,1762585832403,-1009.0,0.000164,2]
[393396337,1762585832412,-1200.0,0.00016437,2]
[393396338,1762585832423,-2083.48989094,0.00016438,2]
[393396339,1762585832444,-177.51010906,0.00016438,2]
[393396340,1762585832454,-230.92,0.00016454,2]
[393396341,1762585832464,-300.0,0.00016454,2]
[393396342,1762585832475,-300.0,0.00016454,2]
[393396343,1762585832485,-5849.5346448,0.00016455,2]
[393396344,1762585832496,-8751.2331483,0.00016455,2]
[393396345,1762585832506,-151.0,0.00016471,2]
[393396346,1762585832515,-263.0,0.00016472,2]
[393396347,1762585832525,-151.0,0.00016472,2]
[393396348,1762585832536,-500.0,0.00016473,2]
[393396349,1762585832545,-500.0,0.00016473,2]
[393396350,1762585832555,-500.0,0.00016473,2]
[393396351,1762585832565,-500.0,0.00016473,2]
[393396352,1762585832575,-500.0,0.00016473,2]
[393396353,1762585832586,-500.0,0.00016473,2]
[393396354,1762585832599,-500.87217463,0.00016473,2]
[393396355,1762585832610,-501.61257175,0.00016473,2]
[393396356,1762585832620,-501.91892578,0.00016473,2]
[393396357,1762585832629,-500.0,0.00016473,2]
[393396358,1762585832642,-500.0,0.00016473,2]
[393396359,1762585832652,-1323.39,0.00016474,2]
[393396360,1762585832662,-500.0,0.00016474,2]
[393396361,1762585832673,-500.0,0.00016474,2]
[393396362,1762585832683,-500.0,0.00016474,2]
[393396363,1762585832692,-500.0,0.00016474,2]
[393396364,1762585832702,-500.0,0.00016474,2]
[393396365,1762585832711,-500.0,0.00016474,2]
[393396366,1762585832722,-500.0,0.00016474,2]
[393396367,1762585832732,-500.0,0.00016474,2]
[393396368,1762585832742,-500.0,0.00016474,2]
[393396369,1762585832752,-500.0,0.00016474,2]
[393396371,1762585832762,-500.0,0.00016474,2]
[393396373,1762585832771,-500.0,0.00016474,2]
[393396375,1762585832781,-500.0,0.00016474,2]
[393396377,1762585832791,-500.0,0.00016474,2]
[393396379,1762585832801,-500.0,0.00016474,2]
[393396382,1762585832810,-500.0,0.00016474,2]
[393396384,1762585832820,-500.0,0.00016474,2]
[393396386,1762585832830,-500.0,0.00016474,2]
[393396388,1762585832839,-500.0,0.00016474,2]
[393396390,1762585832848,-500.0,0.00016474,2]